bitfinex/quotes_ETHUSD_20241108
["timestamp","ask_amount","ask_price","bid_price","bid_amount"]
[1731033966057,0.00955507,2891.2,2890.9,0.32316293]
[1731033967493,0.00955507,2891.4,2891.0,3.23162933]
[1731033967800,0.01,2891.5,2891.1,3.0]
[1731033968756,0.00955507,2891.6,2891.2,0.55]
[1731033969177,0.01,2891.7,2891.3,2.68162933]
[1731033969363,0.00955507,2892.1,2891.6,2.68162933]
[1731033969716,0.00955507,2892.1,2891.7,0.55]
[1731033969918,0.01955507,2892.1,2891.7,0.55]
[1731033970214,0.01,2892.1,2892.0,2.68162933]
[1731033970514,0.01,2892.1,2892.0,3.23162933]
[1731033970899,0.01,2892.1,2892.0,3.55479226]
[1731033971106,0.01,2892.2,2892.0,3.55479226]
[1731033971417,0.01,2892.2,2892.1,0.55]
[1731033971914,0.01955507,2892.2,2891.7,2.68162933]
[1731033972121,0.01955507,2892.2,2891.7,0.26816293]
[1731033973441,0.01955507,2892.2,2891.8,0.55]
[1731033974721,0.01,2892.5,2891.8,0.55]
[1731033974923,0.00955507,2892.8,2892.1,3.55]
[1731033975130,0.01,2892.9,2892.2,0.62316293]
[1731033975432,0.00955507,2893.0,2892.6,2.68162933]
[1731033975596,0.01955507,2893.4,2892.7,3.55]
[1731033975800,0.01955507,2893.6,2892.8,0.7529]
[1731033976134,0.13825431,2894.0,2893.2,2.68162933]
[1731033976135,0.01955507,2893.8,2893.2,2.68162933]
[1731033976421,0.01,2893.8,2893.3,0.55]
[1731033976628,0.06140812,2894.0,2893.3,0.55]
[1731033976629,0.06140812,2894.0,2893.3,3.55]
[1731033976788,0.06140812,2894.0,2893.6,2.68162933]
[1731033976989,0.01,2893.9,2893.7,0.55]
[1731033977562,0.01,2893.9,2893.5,0.55]
[1731033979761,0.01,2893.9,2893.5,1.17316293]
[1731033980335,0.00955507,2893.8,2893.2,0.21461913]
[1731033980536,0.00955507,2893.8,2893.2,0.55]
[1731033983073,0.01955507,2894.2,2893.3,2.68162933]
[1731033983225,0.01955507,2894.2,2893.6,0.55]
[1731033985095,0.01,2894.0,2893.6,0.55]
[1731033985902,0.01955507,2894.2,2893.6,0.55]
[1731033987508,0.01955507,2893.9,2893.5,0.55]
[1731033988202,0.00955507,2893.7,2893.2,0.21206895]
[1731033988511,0.01955507,2893.7,2893.3,0.3212069]
[1731033988816,0.01,2893.9,2893.3,0.3212069]
[1731033989518,0.00955507,2893.7,2893.4,0.55]
[1731033990686,0.01,2893.6,2893.4,0.55]
[1731033990906,0.00938353,2893.6,2893.4,0.55]
[1731033992117,0.00938353,2893.6,2893.2,0.55]
[1731033992318,0.00938353,2893.6,2893.4,0.55]
[1731033992819,0.00938353,2893.6,2893.3,0.355]
[1731033992997,0.00938353,2893.6,2893.0,0.55]
[1731033993417,0.00938353,2893.8,2893.0,3.23162933]
[1731033993597,0.00938353,2894.0,2893.4,0.55]
[1731033993800,0.00938353,2894.0,2893.4,1.3825]
[1731033994114,0.0189386,2894.3,2893.4,4.3825]
[1731033994322,0.0189386,2894.3,2893.7,3.55]
[1731033994683,0.00938353,2894.6,2893.7,3.55]
[1731033994905,0.00938353,2894.6,2894.0,3.55]
[1731033995110,0.00938353,2894.6,2894.0,4.3533]
[1731033995605,0.05182565,2895.1,2894.0,4.3533]
[1731033995606,0.00938353,2894.9,2894.3,0.55]
[1731033995827,0.0189386,2894.9,2894.3,0.55]
[1731033996215,0.00938353,2894.6,2894.0,3.55]
[1731033996385,0.00938353,2894.6,2894.0,4.17316293]
[1731033996727,0.00938353,2894.6,2894.0,4.38712091]
[1731033997581,0.00955507,2894.2,2893.6,0.8073]
[1731033997824,0.00955507,2894.2,2893.5,0.20756773]
[1731033997993,0.00955507,2894.2,2893.3,3.44722933]
[1731033998384,0.00955507,2894.0,2893.3,3.44722933]
[1731033998624,0.00955507,2894.0,2893.4,0.34472293]
[1731033998798,0.00938353,2893.9,2893.0,3.44722933]
[1731033999013,0.00938353,2893.9,2893.0,3.65284856]
[1731034000001,0.00938353,2893.9,2893.1,3.55]
[1731034002059,0.00938353,2893.9,2893.1,0.55]
[1731034002340,0.00938353,2894.1,2893.4,0.55]
[1731034002621,0.00938353,2894.1,2893.6,0.55]
[1731034002820,0.00955507,2894.2,2893.6,3.23162933]
[1731034003029,12.11,2894.9,2894.0,0.55]
[1731034003030,0.00938353,2894.6,2894.0,0.55]
[1731034003225,0.00938353,2894.8,2894.3,0.55]
[1731034003403,0.00938353,2894.6,2894.3,0.55]
[1731034003838,0.00955507,2894.9,2894.3,0.55]
[1731034003839,0.00938353,2894.8,2894.3,0.55]
[1731034004663,0.00938353,2894.8,2894.3,0.94972293]
[1731034005165,0.00938353,2894.6,2894.3,0.55]
[1731034006517,0.00955507,2894.1,2893.3,2.68162933]
[1731034006834,0.0189386,2894.1,2893.3,2.68162933]
[1731034007843,0.0189386,2894.1,2893.4,3.55]
[1731034011827,0.0189386,2893.8,2893.1,3.0]
[1731034012057,0.0189386,2893.8,2892.2,0.62316293]
[1731034012058,0.00955507,2893.6,2892.7,2.68162933]
[1731034012276,0.00955507,2893.6,2892.8,0.34481293]
[1731034012468,0.00938353,2893.4,2892.8,0.34481293]
[1731034013753,0.00938353,2893.6,2893.0,2.68162933]
[1731034014059,0.00938353,2893.6,2893.1,3.55]
[1731034014266,0.00938353,2893.6,2893.1,4.17316293]
[1731034014569,0.00938353,2893.4,2892.9,0.55]
[1731034015051,0.00955507,2893.8,2893.2,0.55]
[1731034015251,0.00938353,2893.9,2893.4,0.55]
[1731034016374,0.00938353,2893.7,2893.4,0.55]
[1731034016957,0.00955507,2893.5,2893.0,5.68162933]
[1731034017264,0.00955507,2893.5,2892.8,0.34481293]
[1731034017465,0.00938353,2893.4,2892.8,3.55342608]
[1731034017876,0.00938353,2893.4,2892.8,3.34481293]
[1731034018245,0.00938353,2893.4,2892.9,0.60264423]
[1731034018573,0.00938353,2893.4,2892.9,0.55]
[1731034020783,0.00955507,2893.3,2892.9,0.55]
[1731034021142,0.00938353,2893.2,2892.9,0.55]
[1731034021745,0.02,2894.2,2892.9,0.55]
[1731034021746,0.0189386,2893.4,2892.9,0.55]
[1731034021987,0.00938353,2893.2,2892.9,0.55]
[1731034023076,0.0189386,2893.2,2892.9,0.55]
[1731034023492,0.00938353,2893.0,2892.5,3.0]
[1731034023647,0.00938353,2893.0,2892.5,3.56816293]
[1731034024885,0.0189386,2893.4,2892.8,3.55]
[1731034025039,0.01,2894.3,2892.7,3.48062933]
[1731034025040,0.0189386,2893.8,2893.2,0.55]
[1731034025451,0.0189386,2893.8,2893.5,0.55]
[1731034025654,0.00938353,2893.6,2893.1,2.68162933]
[1731034025883,0.00938353,2893.6,2893.3,0.55]
[1731034026097,0.00938353,2893.8,2893.4,2.68162933]
[1731034026283,0.00938353,2893.8,2893.5,0.55]
[1731034026493,0.00955507,2893.7,2893.3,0.55]
[1731034026699,0.00938353,2893.4,2892.9,3.0]
[1731034026991,0.00955507,2893.3,2893.0,0.55]
[1731034027162,0.00938353,2893.2,2893.0,0.55]
[1731034027360,0.00955507,2893.1,2892.3,0.2091911]
[1731034027594,0.00938353,2892.9,2892.3,0.36806204]
[1731034027900,0.00938353,2892.9,2892.3,0.50628604]
[1731034028898,0.00938353,2892.9,2892.4,0.55]
[1731034031206,15.13,2893.9,2892.4,0.55]
[1731034031504,1.59941173,2893.8,2892.4,0.55]
[1731034031677,0.08641173,2893.8,2892.4,0.55]
[1731034031864,3.01,2893.6,2892.2,2.89320827]
[1731034032070,0.01,2893.4,2892.2,2.89320827]
[1731034032811,0.08642279,2893.5,2892.2,2.89320827]
[1731034032969,0.31064228,2893.4,2892.2,2.89320827]
[1731034033304,0.08642279,2893.3,2892.3,0.55]
[1731034034526,0.08642279,2893.3,2892.4,0.03160645]
[1731034034851,0.08642279,2893.3,2892.3,0.55]
[1731034037109,0.09642279,2893.3,2891.9,5.68162933]
[1731034037297,0.08642279,2893.3,2892.0,1.33474203]
[1731034037511,0.08642279,2893.3,2892.3,0.55]
[1731034037724,0.08642279,2893.3,2892.4,0.0316063]
[1731034037994,0.08642279,2893.3,2892.3,0.55]
[1731034038201,1.3371293,2893.3,2892.3,0.87316293]
[1731034038809,1.3371293,2893.3,2892.0,0.78474203]
[1731034038810,1.3371293,2893.3,2892.1,0.55]
[1731034039010,1.3371293,2893.3,2892.0,0.55]
[1731034039530,1.3371293,2893.3,2892.0,1.365]
[1731034040125,1.3471293,2893.3,2892.0,1.365]
[1731034040842,1.3471293,2893.3,2892.0,0.55]
[1731034040987,0.46677716,2893.2,2892.2,0.55]
[1731034041192,0.08642667,2893.1,2892.2,0.55]
[1731034041734,0.09642672,2893.1,2892.0,0.55]
[1731034042234,0.09642672,2893.1,2891.8,0.55]
[1731034042395,0.09642672,2893.1,2892.0,0.55]
[1731034042790,0.10642672,2893.1,2891.7,3.0]
[1731034043096,12.11,2893.0,2891.7,3.0]
[1731034043315,0.08644082,2892.9,2891.7,3.0]
[1731034044131,0.08644082,2892.9,2891.8,0.55]
[1731034044307,1.21964408,2892.8,2891.8,0.55]
[1731034044628,0.08643997,2892.7,2891.8,0.55]
[1731034048220,1.21964408,2892.8,2891.4,2.68162933]
[1731034048221,0.01,2892.5,2891.4,2.68162933]
[1731034049935,3.08643982,2892.6,2891.5,0.55]
[1731034050116,0.08643982,2892.6,2891.7,2.68162933]
[1731034051728,0.08643982,2892.6,2891.8,0.03165366]
[1731034051933,0.09644196,2892.8,2891.7,2.68162933]
[1731034052124,1.2216442,2892.7,2891.7,2.68162933]
[1731034052471,0.08644197,2892.6,2891.7,2.68162933]
[1731034053522,0.08644197,2892.6,2891.8,0.03165222]
[1731034054291,0.08644187,2892.6,2892.1,0.55]
[1731034054556,0.08644187,2892.8,2892.1,0.87316293]
[1731034054768,0.09643001,2893.0,2892.1,0.55]
[1731034055547,0.09643001,2893.0,2891.7,2.68162933]
[1731034055762,0.09643001,2893.0,2891.5,3.0]
[1731034056061,0.01,2892.9,2891.6,0.55]
[1731034056263,0.08644197,2892.8,2891.7,2.71327801]
[1731034056563,0.08644197,2892.8,2891.8,0.55]
[1731034057233,12.430643,2893.0,2891.8,0.55]
[1731034057234,0.08643262,2892.9,2891.8,0.55]
[1731034057435,1.33814018,2892.9,2892.0,0.55]
[1731034058660,12.12,2893.5,2892.1,3.03162896]
[1731034058849,0.08642295,2893.4,2892.2,0.55]
[1731034061088,0.08642295,2893.4,2892.0,0.55]
[1731034062001,0.01,2893.3,2892.0,0.55]
[1731034062299,1.23064229,2893.3,2892.0,0.96561341]
[1731034062466,0.08643079,2893.2,2892.0,0.96561341]
[1731034063603,12.19643079,2893.2,2892.0,0.96561341]
[1731034063788,12.11,2893.2,2892.0,0.96561341]
[1731034064974,0.0864308,2893.1,2892.0,0.96561341]
[1731034065504,1.42913811,2893.1,2892.0,0.96561341]
[1731034069146,1.42913811,2893.1,2892.2,0.55]
[1731034069358,0.0864308,2893.1,2892.2,0.55]
[1731034069846,0.08642312,2893.3,2892.4,0.8198]
[1731034070040,0.08642312,2893.4,2892.5,0.03158769]
[1731034070244,0.08642312,2893.4,2892.4,1.3698]
[1731034070410,0.08642312,2893.4,2892.6,0.55]
[1731034070604,0.08557231,2893.4,2892.6,0.55]
[1731034071039,0.08557231,2893.4,2892.5,0.55]
[1731034072702,0.08557231,2893.4,2892.3,0.55]
[1731034073643,0.08557231,2893.4,2892.3,0.54392356]
[1731034073828,1.21955723,2893.3,2892.3,0.54392356]
[1731034074033,0.08557207,2893.2,2892.3,0.54392356]
[1731034075339,0.08557207,2893.2,2891.9,1.22851293]
[1731034075839,0.08557207,2893.2,2891.9,0.8288]
[1731034077019,0.08557207,2893.2,2892.0,0.55]
[1731034081438,12.19557207,2893.2,2892.0,0.55]
[1731034081643,12.11,2893.2,2892.0,0.55]
[1731034082706,0.08643343,2893.1,2892.1,0.03248277]
[1731034082904,1.21964334,2893.0,2892.0,0.55]
[1731034083111,0.08643343,2892.9,2892.0,0.55]
[1731034083849,0.08643343,2892.9,2891.8,3.0]
[1731034084154,0.08643343,2892.9,2891.6,0.7891]
[1731034084447,3.01,2892.8,2891.6,0.7891]
[1731034084608,3.01,2892.8,2891.3,2.68162933]
[1731034084609,1.60708573,2892.7,2891.3,3.47072933]
[1731034085513,1.60708573,2892.7,2891.4,0.55]
[1731034085847,12.11,2892.6,2891.4,3.0]
[1731034086015,0.08644839,2892.5,2891.4,3.0]
[1731034087050,0.08644839,2892.5,2891.6,0.55]
[1731034087249,0.08644839,2892.5,2891.7,0.03250444]
[1731034087543,0.08644839,2892.5,2891.5,0.55]
[1731034087744,0.08644839,2892.5,2891.7,0.55]
[1731034088337,0.08644839,2892.5,2891.7,0.58250453]
[1731034090124,0.08644839,2892.5,2891.7,0.55]
[1731034090322,0.08644255,2892.7,2891.7,0.55]
[1731034090627,0.08644255,2892.7,2891.5,0.55]
[1731034090850,0.08644255,2892.7,2891.7,0.55]
[1731034091247,0.08644255,2892.7,2891.8,0.03250472]
[1731034091453,0.08644255,2892.7,2891.8,0.03249853]
[1731034091967,0.08644255,2892.7,2891.7,0.55]
[1731034092128,0.08644255,2892.7,2891.8,0.03250465]
[1731034092329,1.30608681,2892.7,2891.8,0.03250465]
[1731034092659,1.30608681,2892.7,2891.7,0.55]
[1731034092866,1.30608681,2892.7,2891.6,0.355]
[1731034092867,1.30608681,2892.7,2891.9,0.55]
[1731034093356,0.08644255,2892.7,2891.9,0.55]
[1731034093560,0.08643482,2892.9,2891.9,0.55]
[1731034095827,0.08643365,2893.0,2892.1,0.55]
[1731034096021,0.08643365,2893.0,2892.3,1.319]
[1731034096840,0.08642316,2893.4,2892.3,1.319]
[1731034099123,0.08642316,2893.4,2892.4,0.03245836]
[1731034099329,0.08642316,2893.4,2892.5,0.55]
[1731034099489,0.08641372,2893.5,2892.7,0.55]
[1731034099682,13.321,2893.6,2892.8,0.03243325]
[1731034099918,12.81645525,2894.2,2892.9,0.55]
[1731034100121,1.05968288,2894.3,2893.1,0.55]
[1731034100122,0.08639946,2894.1,2893.1,0.55]
[1731034100629,0.08639946,2894.1,2892.9,3.0]
[1731034100630,0.08639946,2894.1,2893.0,0.55]
[1731034100783,0.08639946,2894.1,2893.2,0.55]
[1731034101134,0.08639793,2894.2,2893.2,1.3817]
[1731034101420,1.29739793,2894.2,2893.2,1.3817]
[1731034102806,12.11,2894.3,2893.4,0.55]
[1731034103134,12.11,2894.9,2893.7,3.47082933]
[1731034103433,0.08637456,2894.8,2893.8,3.58234147]
[1731034103642,0.08637094,2895.0,2894.0,0.55]
[1731034104094,0.08637094,2895.0,2893.9,0.55]
[1731034104292,0.08637094,2895.0,2894.0,0.7892]
[1731034104602,0.08637094,2895.0,2894.1,3.55]
[1731034104916,0.13819244,2895.3,2894.3,0.55]
[1731034105246,0.13819244,2895.3,2894.2,0.55]
[1731034105588,0.13819244,2895.3,2894.1,0.55]
[1731034105797,0.05183034,2895.3,2894.1,0.55]
[1731034107128,2.68162933,2895.1,2894.0,0.7892]
[1731034107300,0.35453599,2895.0,2894.0,0.7892]
[1731034108095,0.08637306,2895.0,2894.0,0.7892]
[1731034108294,0.09637228,2895.2,2894.0,0.7892]
[1731034109265,0.08637228,2895.2,2894.1,0.58233063]
[1731034109466,0.08637228,2895.2,2894.3,0.55]
[1731034109727,0.08637228,2895.2,2894.3,0.73831]
[1731034110301,0.08637228,2895.2,2894.5,0.55]
[1731034110530,0.05183034,2895.3,2894.7,0.55]
[1731034110727,0.05183034,2895.3,2894.5,0.55]
[1731034114697,0.05183034,2895.3,2894.4,3.55]
[1731034114894,0.05183034,2895.3,2894.7,0.8073]
[1731034115131,0.05183034,2895.3,2895.0,0.55]
[1731034117420,0.05183034,2895.3,2894.9,3.45152933]
[1731034117660,0.05183034,2895.3,2895.1,0.7699]
[1731034117823,0.05183034,2895.3,2895.2,0.55]
[1731034118029,0.0863402,2896.3,2895.4,0.55]
[1731034118227,0.08632873,2896.4,2895.5,0.80213148]
[1731034118421,0.08632873,2896.4,2895.5,0.7699]
[1731034118620,0.08632873,2896.4,2895.1,0.55]
[1731034118938,0.08632873,2896.4,2895.5,0.55]
[1731034119134,0.08632761,2896.6,2895.5,0.55]
[1731034119339,1.21963276,2896.5,2895.5,0.55]
[1731034119668,0.0863276,2896.4,2895.6,0.03222877]
[1731034120163,0.0863276,2896.4,2895.5,0.55]
[1731034121745,3.0,2896.6,2896.4,0.1849804]
[1731034121941,0.08632625,2896.5,2896.4,0.1849804]
[1731034125756,12.19632625,2896.5,2896.4,0.1849804]
[1731034125942,12.11,2896.5,2896.4,0.1849804]
[1731034126141,15.12,2896.5,2896.4,0.1849804]
[1731034126633,15.07682659,2896.5,2896.4,0.1849804]
[1731034126832,17.00757381,2896.5,2896.4,0.1849804]
[1731034127842,0.01,2895.7,2894.6,0.7949]
[1731034128155,3.0,2895.5,2894.6,0.7949]
[1731034128360,3.0,2895.5,2893.7,2.68162933]
[1731034128361,0.08636674,2895.4,2893.8,0.7949]
[1731034128675,3.0,2895.2,2893.9,0.34765293]
[1731034128844,0.08637822,2895.1,2893.8,0.7949]
[1731034129050,2.68162933,2895.0,2893.8,0.7949]
[1731034129248,0.08637945,2894.9,2893.8,0.7949]
[1731034129867,0.08637945,2894.9,2893.9,0.55]
[1731034130072,0.36318033,2894.9,2893.9,0.55]
[1731034130550,0.08637945,2894.9,2893.9,0.55]
[1731034130869,0.08637831,2894.8,2893.8,0.7949]
[1731034131382,12.06682659,2894.7,2893.8,0.7949]
[1731034131559,0.08639169,2894.6,2893.8,0.7949]
[1731034133578,0.08639169,2894.6,2893.4,0.7605]
[1731034133755,1.21532183,2894.5,2893.4,1.13655]
[1731034133958,2.76802898,2894.4,2893.0,0.7605]
[1731034134146,12.15322745,2894.3,2893.0,0.7605]
[1731034134346,0.08640086,2894.2,2893.2,0.7605]
[1731034134543,0.08640086,2894.2,2893.3,1.180739]
[1731034134984,0.08640086,2894.2,2893.3,1.111625]
[1731034135182,0.08640086,2894.2,2893.4,0.55]
[1731034136891,0.08640086,2894.2,2893.4,0.619114]
[1731034137376,0.08640086,2894.2,2893.4,0.55]
[1731034137586,0.08640086,2894.2,2893.4,0.61911353]
[1731034137882,0.08639191,2894.4,2893.5,0.17307385]
[1731034139462,0.09639191,2894.4,2893.0,0.8032]
[1731034139683,0.01,2894.4,2893.1,0.55]
[1731034139887,0.09640139,2894.4,2893.1,0.55]
[1731034140197,0.08640139,2894.4,2893.2,0.06912113]
[1731034140358,0.08640139,2894.4,2893.4,0.8032]
[1731034140559,0.08640139,2894.4,2893.5,0.55]
[1731034140967,12.06682659,2894.6,2893.5,0.55]
[1731034140968,0.08638468,2894.5,2893.5,0.55]
[1731034143291,0.08638468,2894.5,2893.6,0.78]
[1731034143503,0.08638468,2894.5,2893.7,0.06910776]
[1731034144059,0.06183227,2894.7,2893.4,0.55]
[1731034144259,0.01,2894.5,2893.0,0.98866082]
[1731034144461,3.0,2894.3,2893.0,0.78]
[1731034144705,0.08639991,2894.2,2893.0,0.78]
[1731034145560,12.06682659,2894.1,2892.6,0.8057]
[1731034145872,12.15323582,2894.0,2892.6,0.8057]
[1731034146070,12.06682659,2894.0,2892.6,0.8057]
[1731034146703,12.06682659,2894.0,2892.7,2.68162933]
[1731034146865,12.06682659,2894.0,2892.8,0.55]
[1731034147291,0.0864032,2893.9,2892.8,0.55]
[1731034147625,1.33269018,2893.9,2893.0,0.55]
[1731034147895,0.0864032,2893.9,2893.0,0.55]
[1731034148259,0.08640328,2894.0,2893.0,0.55]
[1731034148863,0.08640328,2894.0,2892.8,1.3059]
[1731034149215,0.08640328,2894.0,2893.0,0.55]
[1731034149499,0.08640328,2894.0,2893.1,0.06912254]
[1731034149796,0.08640328,2894.0,2893.4,0.55]
[1731034150010,0.08638918,2894.5,2893.5,0.39875293]
[1731034150304,0.08638918,2894.5,2893.3,0.7559]
[1731034150605,0.01,2894.3,2893.0,0.7559]
[1731034150895,0.09640262,2894.3,2893.0,0.7559]
[1731034151466,0.08640262,2894.3,2893.0,0.7559]
[1731034151667,0.08640261,2894.2,2893.0,0.7559]
[1731034152660,0.08640261,2894.2,2893.2,0.55]
[1731034152861,0.08640253,2894.4,2893.4,0.8248]
[1731034153067,0.08640253,2894.4,2893.6,0.55]
[1731034153785,0.08638673,2894.5,2893.7,0.06910938]
[1731034154021,0.08638673,2894.5,2893.6,0.55]
[1731034154719,0.13821431,2894.7,2893.6,0.55]
[1731034155221,0.05183227,2894.7,2894.0,0.55]
[1731034155391,0.05183227,2894.7,2893.7,0.8198]
[1731034155595,0.05183227,2894.7,2893.6,0.55]
[1731034157719,0.08638195,2894.6,2893.6,0.55]
[1731034159018,0.05183227,2894.7,2893.7,0.7683]
[1731034159019,0.138218,2894.7,2893.7,0.7683]
[1731034159204,0.138218,2894.7,2893.4,3.0]
[1731034159205,0.08638573,2894.5,2893.5,0.55]
[1731034159438,0.08638573,2894.5,2893.5,0.85]
[1731034160222,0.08638251,2894.6,2893.5,0.85]
[1731034161318,0.08638251,2894.6,2893.7,0.55]
[1731034161526,0.08638251,2894.6,2893.8,0.06910602]
[1731034162398,0.05183227,2894.7,2893.9,1.3799]
[1731034165232,0.05183227,2894.7,2893.9,4.06152933]
[1731034165428,0.05183227,2894.7,2894.3,0.55]
[1731034165627,0.05183227,2894.7,2894.5,0.55]
[1731034165789,0.05183227,2894.7,2894.6,0.06908689]
[1731034165987,0.05183227,2894.7,2894.6,0.61908689]
[1731034166191,0.08635862,2895.8,2894.7,0.55]
[1731034166392,1.30167714,2895.8,2894.9,0.55]
[1731034166620,0.08635862,2895.8,2894.9,0.55]
[1731034166792,0.01,2896.1,2894.9,0.55]
[1731034166793,0.0963429,2896.1,2894.9,0.55]
[1731034167833,0.0863429,2896.1,2894.9,0.55]
[1731034168029,0.0863429,2896.1,2895.0,0.06907425]
[1731034168532,0.0863429,2896.1,2894.9,0.55]
[1731034168737,1.60265985,2896.1,2894.9,0.55]
[1731034169923,1.60265985,2896.1,2894.5,0.55]
[1731034169924,2.68162933,2895.8,2894.5,0.55]
[1731034170128,3.08635657,2895.7,2894.4,0.7607]
[1731034171419,0.08635657,2895.7,2894.5,2.68162933]
[1731034171627,0.08635657,2895.7,2894.7,0.55]
[1731034175336,0.08635657,2895.7,2894.9,0.55]
[1731034175701,0.08635657,2895.7,2894.7,0.55]
[1731034176324,0.08635605,2895.6,2894.4,0.55]
[1731034179115,0.08635605,2895.6,2894.0,3.40615293]
[1731034179116,0.01,2895.3,2894.0,0.40615293]
[1731034179347,0.01,2895.3,2893.6,0.7974]
[1731034179348,5.68162933,2895.2,2893.6,0.7974]
[1731034179523,0.08637197,2895.1,2893.6,0.7974]
[1731034180651,0.08637197,2895.1,2893.7,0.55]
[1731034182445,0.08637197,2895.1,2893.6,0.7974]
[1731034182655,0.57680013,2895.0,2893.6,0.7974]
[1731034182811,0.08638032,2894.9,2893.6,0.86650426]
[1731034183131,0.08638032,2894.9,2893.6,0.7974]
[1731034183337,0.08638032,2894.9,2893.7,0.06910424]
[1731034183534,0.08638032,2894.9,2893.6,0.7974]
[1731034183951,0.08638032,2894.9,2893.7,0.55]
[1731034184937,3.0,2894.8,2893.7,0.55]
[1731034185131,1.60170094,2894.7,2893.7,0.55]
[1731034187516,1.60170094,2894.7,2893.3,2.68162933]
[1731034187517,2.68162933,2894.6,2893.3,0.7894]
[1731034187719,3.08638955,2894.5,2892.9,0.7894]
[1731034187922,0.57680189,2894.4,2892.9,0.7894]
[1731034188255,0.08639092,2894.3,2892.9,0.7894]
[1731034188754,0.08639092,2894.3,2893.0,0.55]
[1731034190160,0.08638927,2894.3,2892.9,0.7894]
[1731034190361,3.0,2894.2,2892.7,0.8294]
[1731034190519,0.08640204,2894.1,2892.7,0.8294]
[1731034191509,0.08640204,2894.1,2892.8,0.55]
[1731034193689,0.08640204,2894.1,2893.0,0.55]
[1731034193984,0.08640204,2894.1,2892.8,0.55]
[1731034195585,0.08640204,2894.1,2892.1,2.68162933]
[1731034195770,0.08640204,2894.1,2891.9,3.02]
[1731034195771,0.3086402,2894.0,2892.4,2.153482]
[1731034196082,0.0864122,2893.9,2892.4,0.7714]
[1731034196282,12.15323879,2893.9,2892.4,0.7714]
[1731034196581,12.06682659,2893.9,2892.4,0.7714]
[1731034196780,1.23754668,2893.8,2892.6,0.55]
[1731034197101,0.08641222,2893.7,2892.5,0.37714]
[1731034198405,0.08641222,2893.7,2892.6,0.55]
[1731034199583,0.08641222,2893.7,2892.5,0.37714]
[1731034199786,12.15323881,2893.7,2892.5,0.37714]
[1731034199988,1.33907855,2893.6,2892.5,0.37714]
[1731034200299,0.08641782,2893.5,2892.5,0.37714]
[1731034200663,0.08641782,2893.5,2892.6,0.6191338]
[1731034201185,0.08641277,2893.6,2892.6,0.6191338]
[1731034202360,0.08641277,2893.6,2892.6,0.55]
[1731034202559,0.08641277,2893.6,2892.7,0.06913023]
[1731034203204,0.08641277,2893.6,2892.6,0.55]
[1731034203363,0.08641277,2893.6,2892.7,0.06913022]
[1731034204365,12.06682659,2893.7,2892.8,4.00192933]
[1731034204603,12.06682659,2893.7,2893.0,0.55]
[1731034204803,12.06682659,2893.9,2893.0,0.55]
[1731034205105,0.08639814,2893.8,2893.0,0.55]
[1731034205799,0.08639814,2893.8,2892.5,0.59025629]
[1731034205800,12.15322473,2893.8,2892.5,0.59025629]
[1731034205966,13.28214906,2893.8,2892.6,0.32718856]
[1731034206609,13.28214906,2893.8,2892.5,3.0]
[1731034207359,0.08641282,2893.7,2892.5,3.0]
[1731034207792,0.08641282,2893.7,2892.6,0.06913024]
[1731034208003,0.08641282,2893.7,2892.7,0.55]
[1731034208170,12.06682659,2893.8,2893.1,0.55]
[1731034208707,12.06682659,2893.8,2893.2,0.32316293]
[1731034209066,12.06682659,2893.8,2893.2,0.39228147]
[1731034209402,0.01,2895.0,2893.2,0.39228147]
[1731034209403,12.06682659,2894.1,2893.3,4.01052933]
[1731034211007,0.08638777,2894.0,2893.3,1.3289]
[1731034211309,0.08638777,2894.0,2893.1,3.0]
[1731034211310,1.30170921,2894.0,2892.8,0.7893]
[1731034211489,1.30170921,2894.0,2892.3,0.01]
[1731034211490,4.30170921,2894.0,2892.4,3.47092933]
[1731034211669,1.30170921,2894.0,2892.4,0.7893]
[1731034211869,0.43017092,2893.9,2892.5,2.68162933]
[1731034212094,0.08641101,2893.8,2892.5,2.68162933]
[1731034212402,0.08641101,2893.8,2892.8,2.68162933]
[1731034212608,0.08641101,2893.8,2892.9,0.7893]
[1731034212901,0.08641101,2893.8,2893.0,0.55]
[1731034213105,0.08640261,2893.9,2892.9,0.55]
[1731034213309,0.08640261,2893.9,2892.7,0.55]
[1731034213970,0.08640275,2893.8,2892.7,0.55]
[1731034214976,0.086411,2894.0,2892.7,0.55]
[1731034215188,1.51532376,2893.9,2892.5,0.55]
[1731034215482,0.08641107,2893.8,2892.5,0.55]
[1731034217739,12.15323766,2893.8,2892.5,0.55]
[1731034217908,12.06682659,2893.8,2892.5,0.55]
[1731034218569,12.06682659,2893.8,2892.6,0.06913165]
[1731034218771,12.06682659,2893.8,2892.8,0.8222]
[1731034219012,12.06682659,2893.8,2892.9,3.23162933]
[1731034219541,12.06682659,2893.8,2893.2,2.68162933]
[1731034219666,12.06682659,2893.8,2893.3,0.55]
[1731034220497,12.06682659,2894.6,2893.3,0.55]
[1731034220690,0.71586442,2895.1,2893.3,0.55]
[1731034220691,13.35989495,2894.5,2893.5,0.55]
[1731034220885,12.06682659,2894.4,2893.5,0.55]
[1731034221105,0.08638264,2894.3,2893.5,0.55]
[1731034221404,12.06682659,2894.2,2893.8,2.68162933]
[1731034221625,12.06682659,2895.1,2893.9,0.0691031]
[1731034221838,0.01,2895.4,2894.0,0.90686324]
[1731034221839,0.36061005,2894.9,2894.0,0.90686324]
[1731034222119,0.0863684,2894.8,2894.0,0.90686324]
[1731034222424,12.15319499,2894.8,2894.0,0.90686324]
[1731034222739,12.06682659,2894.8,2894.0,0.90686324]
[1731034222926,0.36061005,2894.9,2894.3,0.8179]
[1731034223221,0.08635663,2895.5,2894.4,3.28120261]
[1731034223989,12.06682659,2896.1,2894.6,0.55]
[1731034224286,0.08634603,2896.0,2894.8,0.55]
[1731034224486,1.21531726,2895.9,2894.6,0.55]
[1731034224687,0.08635102,2895.8,2894.6,0.55]
[1731034224986,0.08635102,2895.8,2894.5,0.55]